bitfinex/quotes_ETHUSD_20240711
["timestamp","ask_amount","ask_price","bid_price","bid_amount"]
[1720741043698,1.16995796,3097.0,3096.9,6.45806]
[1720741044193,2.18274222,3097.0,3096.9,6.45806]
[1720741044366,0.05174119,3097.0,3096.9,6.45806]
[1720741044765,1.16991295,3097.0,3096.9,6.45806]
[1720741044957,1.16991295,3097.0,3096.9,7.103866]
[1720741045663,1.16991295,3097.0,3096.9,10.332896]
[1720741045898,0.05174119,3097.0,3096.9,10.882896]
[1720741046349,0.00163835,3097.0,3096.9,10.882896]
[1720741046554,0.00163835,3097.0,3096.9,20.978926]
[1720741049507,8.35e-06,3097.0,3096.9,26.653556]
[1720741050337,8.35e-06,3097.0,3096.9,15.778496]
[1720741051338,8.35e-06,3097.0,3096.9,13.332896]
[1720741051485,8.35e-06,3097.0,3096.9,13.882896]
[1720741052523,8.35e-06,3097.0,3096.9,17.111926]
[1720741054024,8.35e-06,3097.0,3096.9,13.882896]
[1720741054199,8.35e-06,3097.0,3096.9,13.182896]
[1720741054596,8.35e-06,3097.0,3096.9,2.52903]
[1720741054922,0.04972825,3097.0,3096.9,2.52903]
[1720741055123,8.35e-06,3097.0,3096.9,2.52903]
[1720741055328,0.05000845,3097.0,3096.9,2.52903]
[1720741055531,8.35e-06,3097.0,3096.9,2.52903]
[1720741055702,0.04998222,3097.0,3096.9,2.52903]
[1720741055891,8.35e-06,3097.0,3096.9,2.52903]
[1720741056397,8.35e-06,3097.0,3096.9,5.75806]
[1720741056592,8.35e-06,3097.0,3096.9,2.52903]
[1720741056593,0.04962895,3097.0,3096.9,2.52903]
[1720741056932,8.35e-06,3097.0,3096.9,2.52903]
[1720741057290,0.04962895,3097.0,3096.9,2.52903]
[1720741057491,8.35e-06,3097.0,3096.9,2.52903]
[1720741057687,0.0496237,3097.0,3096.9,2.52903]
[1720741057889,8.35e-06,3097.0,3096.9,2.52903]
[1720741058094,0.04962238,3097.0,3096.9,2.52903]
[1720741058327,8.35e-06,3097.0,3096.9,2.52903]
[1720741058513,0.0496237,3097.0,3096.9,2.52903]
[1720741058712,8.35e-06,3097.0,3096.9,2.52903]
[1720741058913,8.35e-06,3097.0,3096.7,3.22917]
[1720741058914,0.0496237,3097.0,3096.7,3.22917]
[1720741059114,8.35e-06,3097.0,3096.8,3.22911]
[1720741059305,0.04955059,3096.9,3096.8,3.22911]
[1720741059927,8.35e-06,3097.0,3096.9,3.22903]
[1720741060490,8.35e-06,3097.0,3096.7,3.22913]
[1720741060709,8.35e-06,3097.0,3096.6,3.22934]
[1720741060710,1.11828396,3096.9,3096.6,3.22934]
[1720741060903,1.11828396,3096.8,3096.4,7.47835562]
[1720741061103,2.49388416,3096.9,3096.4,7.47835562]
[1720741061303,1.11839681,3096.8,3096.4,7.47835562]
[1720741061517,1.11839681,3096.7,3096.4,7.47835562]
[1720741061719,1.11839681,3096.8,3096.4,7.47835562]
[1720741061901,1.11840195,3096.7,3096.4,7.47835562]
[1720741062107,3.50443342,3096.9,3096.4,7.47835562]
[1720741062303,2.47940772,3096.8,3096.4,7.47835562]
[1720741062615,2.12896354,3096.7,3096.4,7.47835562]
[1720741062807,2.12896354,3096.6,3096.4,7.47835562]
[1720741063002,0.35044418,3096.8,3096.4,7.47835562]
[1720741063203,1.11843964,3096.7,3096.4,7.47835562]
[1720741063405,1.16775393,3096.6,3096.4,7.47835562]
[1720741063614,1.11843551,3096.5,3096.4,7.47835562]
[1720741063793,1.16763661,3096.5,3096.4,7.47835562]
[1720741066031,1.16778988,3096.5,3096.4,7.47835562]
[1720741066430,1.16778988,3096.5,3096.0,12.29]
[1720741066431,1.16780232,3096.5,3096.0,3.22997]
[1720741066605,1.16780232,3096.5,3096.0,6.45984]
[1720741066795,1.11860122,3096.4,3096.3,3.22966]
[1720741066998,1.00922191,3096.8,3096.4,3.22955]
[1720741067314,3.84013169,3096.9,3096.5,3.22942]
[1720741067315,1.11842031,3096.7,3096.5,3.22942]
[1720741067515,8.35e-06,3097.0,3096.6,3.22934]
[1720741067816,1.11829872,3096.9,3096.6,3.22934]
[1720741068129,8.35e-06,3097.0,3096.6,3.22934]
[1720741068336,1.11833007,3096.9,3096.6,3.22934]
[1720741068628,1.11833007,3096.8,3096.4,3.22949]
[1720741068790,1.00923026,3097.0,3096.0,6.286224]
[1720741068995,1.11833512,3096.9,3096.5,3.22935]
[1720741069194,8.35e-06,3097.0,3096.6,3.22929]
[1720741069436,1.11829368,3096.9,3096.6,3.22929]
[1720741069795,8.35e-06,3097.0,3096.1,4.1786224]
[1720741069796,8.35e-06,3097.0,3096.9,3.22903]
[1720741070020,8.35e-06,3097.0,3096.8,3.22913]
[1720741070469,8.35e-06,3097.0,3096.9,3.22903]
[1720741070624,8.35e-06,3097.0,3096.9,6.45806]
[1720741076369,8.35e-06,3097.0,3096.9,3.22903]
[1720741076734,8.35e-06,3097.0,3096.7,3.22917]
[1720741077344,1.11829274,3096.9,3096.7,3.22917]
[1720741077544,1.11829274,3096.9,3096.5,3.22938]
[1720741077545,8.35e-06,3097.0,3096.6,3.22934]
[1720741077744,2.12803556,3096.9,3096.5,3.22938]
[1720741077931,1.11829324,3096.8,3096.5,6.45876]
[1720741078131,0.04942584,3096.7,3096.6,3.22928]
[1720741078345,1.00974232,3096.9,3096.6,3.22928]
[1720741078548,0.04942584,3096.7,3096.6,3.22928]
[1720741078765,1.00975067,3097.0,3096.6,3.22928]
[1720741078968,1.1669439,3096.9,3096.7,3.22922]
[1720741079166,0.04862196,3096.9,3096.7,3.22922]
[1720741079334,1.11831211,3096.8,3096.7,3.22922]
[1720741079530,1.16686935,3096.8,3096.7,3.22922]
[1720741079730,1.16686935,3096.8,3096.4,7.47835562]
[1720741079931,1.11831211,3096.7,3096.4,10.70788562]
[1720741080230,0.04829628,3096.6,3096.5,3.22945]
[1720741080436,1.16660839,3096.6,3096.5,3.22945]
[1720741080938,0.04829628,3096.6,3096.5,3.22945]
[1720741081166,0.04829628,3096.6,3096.4,3.22949]
[1720741081395,1.11836483,3096.6,3096.4,3.22949]
[1720741081610,1.11836483,3096.5,3096.4,3.22949]
[1720741081876,2.12810715,3096.7,3096.4,3.22949]
[1720741082035,1.11836483,3096.6,3096.4,3.22949]
[1720741082236,8.35e-06,3097.0,3096.4,3.22949]
[1720741082438,0.04819206,3096.5,3096.4,3.22949]
[1720741082637,1.00957398,3096.7,3096.0,20.41433962]
[1720741082638,2.3575,3096.6,3096.0,22.99824562]
[1720741082849,1.11844564,3096.5,3096.1,3.22979]
[1720741083076,1.11844564,3096.4,3096.1,3.22979]
[1720741083470,0.04837527,3096.3,3096.1,3.22979]
[1720741083671,1.11844564,3096.2,3096.1,3.22979]
[1720741084066,1.16675616,3096.2,3096.1,3.22979]
[1720741085188,1.16683378,3096.2,3096.1,3.22979]
[1720741085671,1.16683378,3096.2,3095.9,3.23001]
[1720741085672,1.16683444,3096.2,3095.9,3.23001]
[1720741085871,1.11852392,3096.1,3095.9,3.23001]
[1720741086278,0.04804072,3096.0,3095.9,3.23001]
[1720741086653,1.00933666,3096.5,3096.0,3.22992]
[1720741086858,3.22971,3096.3,3095.6,7.47835562]
[1720741087059,1.00933666,3096.1,3095.6,7.47835562]
[1720741087291,1.11853659,3096.0,3095.6,7.47835562]
[1720741087589,1.11853659,3096.1,3095.6,7.47835562]
[1720741087776,1.11853659,3095.9,3095.6,7.47835562]
[1720741088100,1.11853659,3095.8,3095.7,3.23024]
[1720741088271,1.11862599,3095.8,3095.7,3.23024]
[1720741088649,1.11862599,3096.1,3095.8,3.23014]
[1720741088891,1.00933666,3096.3,3095.8,3.23014]
[1720741088892,1.11862599,3096.0,3095.8,3.23014]
[1720741089092,1.11861477,3095.9,3095.8,3.23014]
[1720741089262,1.16654833,3095.9,3095.8,3.23014]
[1720741090575,1.16654833,3095.9,3095.8,3.23018]
[1720741090778,1.16654833,3095.9,3095.2,7.47835562]
[1720741091078,1.11861477,3095.8,3095.5,3.23042]
[1720741091266,1.11861477,3095.8,3095.2,7.47835562]
[1720741091267,1.16636936,3095.8,3095.2,7.47835562]
[1720741091466,1.11861477,3095.7,3095.2,10.70908562]
[1720741091664,1.16630459,3095.7,3095.2,10.70908562]
[1720741091897,1.11861477,3095.6,3095.2,10.70908562]
[1720741092395,0.04756026,3095.5,3095.2,10.70908562]
[1720741092570,2.4649,3095.9,3095.2,10.70908562]
[1720741092751,0.04775459,3095.8,3095.2,10.70908562]
[1720741092956,1.11873768,3095.7,3095.2,10.70908562]
[1720741093167,1.11873768,3095.7,3095.2,3.23073]
[1720741093357,1.16636272,3095.6,3095.2,3.23073]
[1720741093580,0.04762504,3095.6,3095.2,3.23073]
[1720741093775,2.4649,3095.9,3095.2,3.23073]
[1720741094096,1.16651778,3095.8,3095.2,3.23073]
[1720741094389,1.11876319,3095.7,3095.2,3.23073]
[1720741094688,1.16645301,3095.7,3095.2,3.23073]
[1720741094892,1.11876319,3095.6,3095.2,3.23073]
[1720741095091,0.04768982,3095.7,3095.2,3.23073]
[1720741095257,0.04756026,3095.5,3095.3,0.646158]
[1720741095458,1.00782323,3096.1,3095.4,3.23049]
[1720741095708,3.7737643,3096.2,3095.4,3.23049]
[1720741095709,1.00782323,3096.0,3095.5,3.23039]
[1720741095865,2.12657238,3096.1,3095.5,3.23039]
[1720741096065,1.11874915,3096.0,3095.5,3.23039]
[1720741096273,1.11874915,3095.9,3095.6,3.23037]
[1720741096511,0.04781936,3095.9,3095.6,3.23037]
[1720741096858,1.00782323,3096.1,3095.6,3.23037]
[1720741097068,0.04775459,3095.8,3095.6,3.23037]
[1720741097360,0.04768982,3095.7,3095.6,3.23037]
[1720741097560,2.43,3096.2,3095.4,3.23049]
[1720741097561,1.00782323,3096.0,3095.4,3.23049]
[1720741097759,1.16651154,3095.9,3095.4,3.23049]
[1720741098107,1.11873551,3095.8,3095.2,3.23074]
[1720741098274,2.12655874,3095.8,3095.2,3.23074]
[1720741098462,1.16638199,3095.7,3095.2,3.23074]
[1720741098774,1.11881319,3095.6,3095.2,3.23074]
[1720741098974,0.04751693,3095.5,3095.0,3.23093]
[1720741099181,0.04751693,3095.5,3095.2,6.46152]
[1720741099380,1.00782323,3095.9,3095.2,6.46152]
[1720741099593,1.16648646,3095.8,3095.2,6.46152]
[1720741099774,0.04771126,3095.8,3095.3,3.23068]
[1720741099975,0.04771126,3095.8,3095.6,3.23038]
[1720741100368,1.00782323,3096.0,3095.6,3.23038]
[1720741100599,1.11871699,3095.9,3095.6,3.23038]
[1720741100901,1.00782323,3096.1,3095.6,3.23031]
[1720741101104,1.11865367,3096.0,3095.8,3.23018]
[1720741101411,1.00782323,3096.3,3095.9,3.22999]
[1720741101611,1.11858822,3096.2,3095.9,3.22999]
[1720741101906,1.11858822,3096.1,3095.8,3.23016]
[1720741102218,1.11858822,3096.2,3095.9,3.23002]
[1720741102393,1.11860835,3096.1,3095.9,3.23002]
[1720741102701,1.11863147,3096.0,3095.9,3.23002]
[1720741102903,1.00782323,3096.3,3095.9,3.23002]
[1720741103111,1.11859562,3096.2,3095.9,3.23002]
[1720741103277,1.11859562,3096.1,3095.9,3.23002]
[1720741103458,1.11859562,3096.2,3095.9,3.23002]
[1720741103662,0.04772959,3096.0,3095.9,3.23002]
[1720741103863,1.11859562,3096.0,3095.8,3.23018]
[1720741104164,1.11859562,3095.9,3095.8,3.23018]
[1720741104587,1.16626044,3095.9,3095.8,3.23018]
[1720741105507,0.04766482,3095.9,3095.8,3.23018]
[1720741105687,0.04766482,3095.9,3095.8,6.46036]
[1720741105860,1.11861783,3096.2,3096.0,3.22991]
[1720741106181,1.11858297,3096.1,3096.0,3.22991]
[1720741106598,1.11858297,3096.1,3095.3,7.47835562]
[1720741106800,3.37962323,3095.9,3095.3,7.47835562]
[1720741107102,1.00782323,3095.7,3095.3,7.47835562]
[1720741107319,1.78862102,3095.6,3095.3,7.47835562]
[1720741107623,1.11858297,3095.5,3095.3,7.47835562]
[1720741107826,1.16631063,3095.5,3095.3,7.47835562]
[1720741108116,3.49038297,3095.4,3095.3,7.47835562]
[1720741108279,4.83414727,3095.4,3095.3,7.47835562]
[1720741108479,5.75441167,3095.4,3095.3,7.47835562]
[1720741108708,4.41064737,3095.4,3095.3,7.47835562]
[1720741108911,5.41688348,3095.4,3095.3,7.47835562]
[1720741109081,4.41064737,3095.4,3095.3,7.47835562]
[1720741109277,3.2920644,3095.4,3095.3,7.47835562]
[1720741109477,4.41104911,3095.4,3095.3,7.47835562]
[1720741110507,3.2309,3095.2,3094.2,3.23175]
[1720741110814,3.27686685,3094.8,3094.1,3.23189]
[1720741111019,1.11898471,3094.7,3094.1,3.23189]
[1720741111188,1.16616523,3094.7,3094.2,3.23184]
[1720741111537,1.11898471,3094.6,3094.1,3.23189]
[1720741111880,0.0470509,3094.5,3094.1,3.23189]
[1720741112111,1.11898471,3094.4,3094.1,3.23189]
[1720741112299,0.0470509,3094.5,3094.1,3.23189]
[1720741112503,1.11926516,3094.4,3094.1,3.23189]
[1720741112809,1.1192631,3094.3,3094.1,3.23189]
[1720741113015,0.04692126,3094.3,3094.1,3.23189]
[1720741113219,2.2704,3094.8,3094.1,3.23189]
[1720741113516,0.04685643,3094.2,3094.1,3.23189]
[1720741113828,4.57132028,3095.1,3094.2,3.23182]
[1720741113829,3.23099,3095.1,3094.2,3.23182]
[1720741114036,4.35016026,3095.0,3094.2,3.23182]
[1720741114183,1.11914026,3094.9,3094.2,3.23182]
[1720741114382,6.46211,3095.0,3094.2,3.23182]
[1720741114383,1.16623448,3094.8,3094.2,3.23182]
[1720741114688,0.04709422,3094.8,3094.6,3.23143]
[1720741114887,2.4161,3095.2,3094.4,3.23154]
[1720741115113,0.04698343,3094.7,3094.5,3.23152]
[1720741115328,2.4161,3095.2,3094.5,3.23152]
[1720741115531,0.04691862,3094.6,3094.5,3.23152]
[1720741115735,2.167,3095.5,3094.6,6.46276]
[1720741116033,1.11900087,3095.4,3094.6,6.46276]
[1720741116331,1.11900087,3095.3,3094.6,6.46276]
[1720741116554,1.11900087,3095.2,3094.9,3.2311]
[1720741116899,1.11900087,3095.1,3094.9,3.2311]
[1720741117224,2.4223,3095.6,3094.9,6.46215]
[1720741117398,2.4223,3095.6,3094.9,3.23105]
[1720741117399,1.11891497,3095.5,3094.9,3.23105]
[1720741117601,1.77303647,3095.4,3094.9,3.23105]
[1720741117799,1.11891497,3095.3,3094.9,3.23105]
[1720741118035,0.0473639,3095.2,3094.9,3.23105]
[1720741118341,1.11891497,3095.1,3094.7,3.23124]
[1720741118512,0.04729912,3095.1,3094.9,3.23111]
[1720741119333,0.04729912,3095.1,3094.9,6.46217]
[1720741120117,0.04729912,3095.1,3095.0,3.23101]
[1720741120911,0.04729912,3095.1,3094.9,3.23103]
[1720741121313,0.04729912,3095.1,3094.8,3.23114]
[1720741121523,0.04729912,3095.1,3094.2,9.97035562]
[1720741121524,1.11898257,3095.0,3094.2,9.97035562]
[1720741121719,0.04729912,3095.1,3094.8,3.23112]
[1720741121963,0.04717741,3094.9,3094.8,3.23112]
[1720741122108,0.04729912,3095.1,3094.8,3.23112]
[1720741122309,1.16621421,3095.0,3094.8,3.23112]
[1720741122559,0.04724221,3095.0,3094.8,3.23112]
[1720741123757,0.04724221,3095.0,3094.9,6.46224]
[1720741124314,0.04729912,3095.1,3095.0,3.23101]
[1720741125262,0.04729912,3095.1,3095.0,6.46202]
[1720741126040,0.04729912,3095.1,3095.0,3.23101]
[1720741126210,0.04729912,3095.1,3094.8,3.23112]
[1720741126416,0.04729912,3095.1,3094.9,3.23106]
[1720741126749,0.04732107,3095.0,3094.9,3.23112]
[1720741127939,0.04732107,3095.0,3094.9,7.108464]
[1720741128249,0.04732107,3095.0,3094.9,9.447864]
[1720741128409,0.04732107,3095.0,3094.9,13.228984]
[1720741128613,0.04729912,3095.1,3095.0,9.69303]
[1720741129451,0.04729912,3095.1,3095.0,12.92404]
[1720741129610,0.04729912,3095.1,3095.0,14.95100204]
[1720741129813,0.04729912,3095.1,3095.0,17.23870204]
[1720741130254,1.00661752,3096.3,3096.2,3.22976]
[1720741130459,1.11852717,3096.3,3096.2,6.45952]
[1720741130653,0.04718099,3096.3,3096.2,6.45952]
[1720741130853,1.3421567,3096.9,3096.7,3.22924]
[1720741130854,1.00661752,3096.8,3096.7,3.22924]
[1720741131040,1.11833738,3096.8,3096.7,3.22924]
[1720741131329,1.16522764,3096.8,3096.7,3.22924]
[1720741131573,0.04692962,3096.8,3096.7,3.22924]
[1720741131755,0.04692962,3096.8,3096.7,6.45848]
[1720741132054,8.35e-06,3097.0,3096.9,6.45806]
[1720741133623,8.35e-06,3097.0,3096.9,3.22903]
[1720741133823,8.35e-06,3097.0,3096.7,3.22922]
[1720741133824,8.35e-06,3097.0,3096.7,3.22917]
[1720741134093,0.04698551,3097.0,3096.5,3.2294]
[1720741134262,0.04698551,3097.0,3096.6,3.22933]
[1720741134630,0.04698551,3097.0,3096.7,3.22921]
[1720741140652,0.04698551,3097.0,3096.9,3.22903]
[1720741140858,0.04698551,3097.0,3096.9,3.551933]
[1720741143365,8.35e-06,3097.0,3096.9,7.426769]
[1720741143879,8.35e-06,3097.0,3096.9,10.655799]
[1720741144180,8.35e-06,3097.0,3096.9,7.426769]
[1720741148613,8.35e-06,3097.0,3096.9,11.205799]
[1720741149463,8.35e-06,3097.0,3096.9,17.434829]
[1720741149659,8.35e-06,3097.0,3096.9,19.134829]
[1720741149859,8.35e-06,3097.0,3096.9,21.622129]
[1720741150921,8.35e-06,3097.0,3096.9,24.851159]
[1720741151295,0.00082799,3098.5,3098.3,3.22756]
[1720741152302,0.04812443,3098.4,3098.3,3.22756]
[1720741152921,0.04812443,3098.4,3098.1,3.22771]
[1720741153423,0.04812443,3098.4,3098.2,3.22766]
[1720741154186,0.04812443,3098.4,3098.3,6.45514]
[1720741154704,0.00082799,3098.5,3098.4,6.45494]
[1720741155288,0.00082799,3098.5,3098.4,9.68241]
[1720741155726,0.00082799,3098.5,3098.4,10.23241]
[1720741156834,7.99e-06,3098.5,3098.4,16.68735]
[1720741157125,2.4287,3100.1,3099.8,3.22594]
[1720741157323,2.4287,3100.1,3099.8,6.45189]
[1720741157324,1.11722538,3100.0,3099.8,6.45189]
[1720741157524,2.4287,3100.1,3099.9,3.2259]
[1720741158226,1.11720561,3100.0,3099.9,3.2259]
[1720741158429,2.4287,3100.1,3099.9,3.2259]
[1720741159024,2.4287,3100.1,3099.7,3.22602]
[1720741159233,2.67157,3100.1,3099.5,3.22627]
[1720741159530,1.11724766,3100.0,3099.6,3.22615]
[1720741159736,2.67157,3100.1,3099.6,6.45228]
[1720741159891,2.67157,3100.1,3099.6,3.22613]
[1720741159892,0.267157,3100.0,3099.6,3.22613]
[1720741161117,0.04777184,3099.9,3099.5,3.22632]
[1720741161391,0.04777184,3099.9,3099.4,6.4527]
[1720741161643,0.04777184,3099.9,3099.0,3.22674]
[1720741161644,1.11738893,3099.8,3099.0,3.22674]
[1720741161933,1.55652098,3099.7,3098.9,3.22684]
[1720741162089,2.3237,3099.6,3098.9,3.22684]
[1720741162649,2.3237,3099.6,3098.7,3.22711]
[1720741162650,0.04716428,3099.5,3098.7,3.22709]
[1720741162807,3.27357428,3099.5,3098.4,3.22743]
[1720741163152,3.2268,3099.1,3097.9,3.22792]
[1720741163311,4.4907,3099.2,3097.6,3.22829]
[1720741163312,1.16483024,3099.0,3097.6,3.22829]
[1720741163504,0.04726361,3099.0,3098.5,3.2273]
[1720741163921,0.04702217,3098.9,3098.3,3.22752]
[1720741164330,5.3237,3099.2,3098.3,3.22752]
[1720741164524,0.04695752,3098.8,3098.1,3.22772]
[1720741164740,0.04695752,3098.8,3097.5,9.84285562]
[1720741164741,0.855026,3099.1,3098.5,3.22736]
[1720741164917,1.11768099,3099.0,3098.5,3.22736]
[1720741165091,0.855026,3099.1,3098.6,3.22721]
[1720741165296,0.04704061,3098.9,3098.6,3.22721]
[1720741165508,0.04733366,3099.0,3098.6,3.22721]
[1720741165696,2.3237,3099.2,3098.7,3.22715]
[1720741165895,2.3237,3099.2,3098.8,3.22699]
[1720741166093,5.3151,3099.7,3098.8,3.22699]
[1720741166316,1.97158915,3099.6,3098.8,3.22699]
[1720741166519,1.11746915,3099.5,3098.8,3.22699]
[1720741166702,1.16516707,3099.5,3098.9,3.22694]
[1720741166918,1.11746915,3099.4,3098.9,3.22694]
[1720741167439,0.04719945,3099.3,3098.9,3.22694]
[1720741168022,0.85412,3099.6,3098.9,3.22694]
[1720741168199,0.04713149,3099.2,3098.9,3.22694]
[1720741168400,2.3151,3099.7,3098.9,3.22694]
[1720741168629,0.04709045,3099.1,3099.0,3.22684]
[1720741168808,0.04709045,3099.1,3099.0,6.45368]
[1720741169011,2.2796,3100.2,3099.4,3.22636]
[1720741169210,2.2796,3100.2,3099.4,6.45272]
[1720741169211,1.1172949,3100.1,3099.4,6.45272]
[1720741169551,1.45698439,3100.0,3099.6,6.45231]
[1720741169695,1.1172949,3099.9,3099.6,6.45231]
[1720741169890,0.04799612,3099.9,3099.6,6.45231]
[1720741170299,0.04799612,3099.9,3099.7,3.22606]
[1720741170502,2.2796,3100.2,3099.7,3.22606]
[1720741170700,1.11719667,3100.1,3099.7,3.22606]
[1720741170915,1.11719667,3100.0,3099.7,3.22606]
[1720741171133,1.11719667,3100.0,3099.8,3.226]
[1720741171301,0.04771627,3099.9,3099.8,3.226]
[1720741172012,1.16524311,3099.9,3099.4,3.22636]
[1720741172211,1.11722947,3099.8,3099.2,3.22656]
[1720741172409,1.1173059,3099.7,3099.4,3.22638]
[1720741172614,0.04774449,3099.7,3099.4,3.22638]
[1720741172847,0.04774449,3099.7,3099.3,3.22653]
[1720741173332,5.50525,3100.2,3099.3,3.22653]
[1720741173333,0.04733088,3099.6,3099.3,3.22653]
[1720741173745,3.22586,3100.0,3099.0,10.70512562]
[1720741173897,0.0472847,3099.5,3099.1,3.22668]
[1720741174100,1.11739279,3099.4,3099.1,3.22668]
[1720741174309,0.04763811,3099.4,3099.0,3.22677]
[1720741174512,3.22591,3099.9,3099.0,3.22677]
[1720741174740,1.762611,3099.8,3099.0,3.22677]
[1720741175042,1.16493479,3099.7,3099.1,3.22672]
[1720741175201,1.117439,3099.6,3099.2,3.22662]
[1720741175401,1.117439,3099.5,3099.3,3.22644]
[1720741175609,1.11737636,3099.4,3099.3,3.22644]
[1720741175849,0.04738499,3099.5,3099.3,3.22644]
[1720741176008,1.16471791,3099.4,3099.3,3.22644]
[1720741176449,1.16471791,3099.4,3099.0,3.22678]
[1720741176613,3.22592,3099.9,3099.0,3.22678]
[1720741176614,1.11737911,3099.3,3099.0,3.22678]
[1720741176812,4.66598111,3099.8,3099.0,6.45357]
[1720741177013,1.11737911,3099.7,3099.6,6.45244]
[1720741177318,2.4619,3100.7,3100.0,3.22574]
[1720741177517,2.4619,3100.7,3100.2,3.22559]
[1720741177518,1.15807755,3100.6,3100.2,3.22559]
[1720741177720,2.4619,3100.7,3100.2,3.22559]
[1720741177721,1.11704705,3100.5,3100.2,3.22559]
[1720741177922,0.04091612,3100.4,3100.3,3.22547]
[1720741178104,2.4619,3101.1,3099.6,9.80155562]
[1720741178105,2.4619,3101.1,3100.4,3.22535]
[1720741178445,1.40443328,3101.0,3100.4,3.22535]
[1720741178635,1.11692127,3100.9,3100.5,3.22522]
[1720741178965,0.04161428,3100.8,3100.5,3.22522]
[1720741179251,4.36312663,3101.0,3100.5,3.22522]
[1720741179413,0.04154972,3100.7,3100.5,3.22522]
[1720741179607,2.01613929,3100.9,3100.5,3.22522]
[1720741179608,1.11693663,3100.6,3100.5,3.22522]
[1720741179834,0.04148515,3100.6,3100.5,3.22522]
[1720741180252,2.2764,3101.8,3100.6,3.22518]
[1720741180421,1.34430916,3101.7,3101.3,3.2244]
[1720741180623,1.11666916,3101.6,3101.3,3.2244]
[1720741180821,0.22764,3101.7,3101.3,3.2244]
[1720741180822,1.11666916,3101.5,3101.3,3.2244]
[1720741181041,1.11666916,3101.4,3101.3,3.2244]
[1720741181550,1.11666916,3101.4,3101.3,6.44885]
[1720741181754,2.2764,3102.4,3101.7,3.22397]
[1720741182046,1.11644769,3102.3,3101.7,3.22397]
[1720741182246,2.2764,3102.4,3101.7,3.22397]
[1720741182545,1.11644228,3102.3,3101.7,3.22397]
[1720741182743,1.11644228,3102.2,3101.7,3.22397]
[1720741182949,0.03863053,3102.2,3101.5,3.22421]
[1720741183145,1.11644228,3102.1,3101.6,3.22406]
[1720741183353,1.11644228,3102.1,3101.7,3.22397]
[1720741183354,0.03884516,3102.0,3101.7,3.22397]
[1720741183651,1.11644228,3101.9,3101.7,3.22397]
[1720741183945,3.22764,3102.3,3101.9,3.22383]
[1720741184145,1.1164745,3102.2,3101.9,3.22383]
[1720741184457,0.550404,3102.2,3101.9,3.22383]
[1720741184659,3.072,3102.8,3101.9,3.22383]
[1720741184863,1.11638799,3102.7,3102.1,3.22355]
[1720741185021,1.11638799,3102.6,3102.1,3.22355]
[1720741185219,1.11638799,3102.5,3102.1,3.22355]
[1720741185525,1.11638435,3102.4,3102.1,3.22355]
[1720741185725,1.11638493,3102.4,3102.2,3.22346]
[1720741185959,3.072,3102.8,3102.2,3.22346]
[1720741186115,4.66366875,3102.7,3102.2,3.22346]
[1720741186315,1.11634875,3102.6,3102.2,3.22346]
[1720741186552,1.15612576,3102.6,3101.4,3.22428]
[1720741186768,1.58669333,3102.5,3102.0,3.22371]
[1720741186912,1.15601678,3102.4,3102.0,3.22371]
[1720741187117,0.03966803,3102.4,3102.0,3.22371]
[1720741187529,3.11166803,3102.4,3101.5,3.22424]
[1720741187726,0.03966803,3102.4,3101.9,3.22376]
[1720741187967,3.54732,3102.7,3102.0,3.22362]
[1720741187968,0.54732,3102.7,3102.0,3.22362]
[1720741188117,4.33959267,3102.6,3101.3,7.47835562]
[1720741188318,4.33962267,3102.5,3101.6,3.22412]
[1720741188566,1.15587348,3102.4,3101.6,6.44818]
[1720741188864,0.43790835,3102.3,3101.6,3.22406]
[1720741189369,0.0393667,3102.2,3101.6,3.22406]
[1720741189522,0.0393667,3102.2,3101.7,3.224]
[1720741189721,0.0393667,3102.2,3101.9,3.22379]
[1720741190240,0.03955607,3102.1,3101.9,3.22379]
[1720741190445,0.03955607,3102.1,3101.9,6.44752]
[1720741190628,2.4109,3102.9,3101.9,0.644752]
[1720741190828,2.4729,3103.6,3102.5,6.44629]
[1720741191043,1.11620545,3103.5,3102.5,6.44629]
[1720741191235,1.11620545,3103.4,3102.6,3.22307]
[1720741191450,1.11620545,3103.3,3102.7,3.22298]
[1720741191646,0.03810823,3103.3,3102.7,3.22298]
[1720741191857,0.03810823,3103.3,3102.5,3.2231]
[1720741191858,0.03810823,3103.3,3102.5,6.44623]
[1720741192123,4.33878685,3103.2,3102.2,10.70186562]
[1720741192437,1.59164294,3103.1,3102.3,3.2234]
[1720741192636,3.69796609,3103.1,3102.2,7.47835562]
[1720741192854,1.11633089,3103.0,3102.2,7.47835562]
[1720741193051,6.29491,3102.8,3102.2,7.47835562]
[1720741193360,6.29491,3102.8,3101.9,3.22382]
[1720741193361,0.03737373,3102.7,3101.9,3.22382]
[1720741193567,0.63322837,3102.6,3101.9,3.22382]
[1720741193720,0.03699268,3102.5,3101.9,3.22382]
[1720741194562,3.22319,3102.6,3101.8,7.47835562]
[1720741194745,0.03716847,3102.5,3101.8,7.47835562]
[1720741194954,0.64835485,3102.4,3101.8,7.47835562]
[1720741195144,0.64835485,3102.4,3101.9,3.22382]
[1720741195324,0.03703947,3102.3,3101.9,6.44758]
[1720741195518,3.072,3102.8,3102.3,3.22336]
[1720741195755,0.03745897,3102.7,3102.3,3.22336]
[1720741196081,5.3132,3102.9,3102.3,6.44668]
[1720741196238,0.036835,3102.6,3102.4,3.2233]
[1720741196438,3.43768951,3103.1,3102.4,3.2233]
[1720741196757,0.65096895,3103.0,3102.4,3.2233]
[1720741196967,0.03768696,3102.9,3102.4,3.2233]
[1720741197538,0.03768696,3102.9,3102.6,3.22308]
[1720741197742,0.03768696,3102.9,3102.6,6.44611]
[1720741198061,3.072,3103.2,3102.6,6.44611]
[1720741198229,0.0364314,3102.8,3102.6,6.44611]
[1720741198430,3.64932105,3103.2,3102.6,3.22303]
[1720741198750,1.11621786,3103.1,3102.6,3.22303]
[1720741199064,3.64932105,3103.2,3102.2,3.22344]
[1720741199065,0.03656033,3103.0,3102.2,3.22344]
[1720741199227,0.40514847,3103.0,3102.3,3.22339]
[1720741199431,0.36858814,3103.0,3102.3,3.22339]
[1720741199631,1.15258935,3102.9,3101.6,2.3909]
[1720741199829,7.41120761,3102.8,3101.9,3.2238]
[1720741200034,1.11627761,3102.7,3102.0,3.22371]
[1720741200265,0.41882776,3102.6,3102.1,3.22351]
[1720741200575,0.03610874,3102.5,3102.4,3.22327]
[1720741200869,3.072,3102.8,3102.2,3.22342]